[Event "*** Titled Tuesday Blitz"]
[Site "Chess.com"]
[Date "2020.04.07"]
[Round "6"]
[White "nochewycandy"]
[Black "Megagigahiper3345"]
[Result "1-0"]
[WhiteElo "2521"]
[BlackElo "2305"]
[TimeControl "180+1"]
[EndTime "14:07:54 PDT"]
[Termination "nochewycandy won on time"]

1. e4 {[%clk 0:03:00.9]} 1... c5 {[%clk 0:02:57.2]} 2. Nc3 {[%clk 0:03:00]} 2...
d6 {[%clk 0:02:56.1]} 3. d4 {[%clk 0:02:58.9]} 3... cxd4 {[%clk 0:02:56.2]} 4.
Qxd4 {[%clk 0:02:59.8]} 4... a6 {[%clk 0:02:51.8]} 5. b3 {[%clk 0:02:59.6]} 5...
Nc6 {[%clk 0:02:50]} 6. Qd2 {[%clk 0:02:59.8]} 6... g6 {[%clk 0:02:50.5]} 7. Bb2
{[%clk 0:03:00]} 7... Bh6 {[%clk 0:02:51]} 8. f4 {[%clk 0:03:00.1]} 8... f5
{[%clk 0:02:51.6]} 9. Nd5 {[%clk 0:02:56.3]} 9... e5 {[%clk 0:02:49.3]} 10. g3
{[%clk 0:02:50]} 10... Nf6 {[%clk 0:02:43.6]} 11. O-O-O {[%clk 0:02:40]} 11...
Nxe4 {[%clk 0:02:41.7]} 12. Qe3 {[%clk 0:02:37.9]} 12... O-O {[%clk 0:02:37]}
13. Bc4 {[%clk 0:02:34]} 13... Kh8 {[%clk 0:02:28.4]} 14. Nf3 {[%clk 0:02:30.2]}
14... Bg7 {[%clk 0:02:06.4]} 15. fxe5 {[%clk 0:02:21]} 15... b5 {[%clk
0:00:56.4]} 16. Be2 {[%clk 0:02:15.8]} 16... Be6 {[%clk 0:00:47.6]} 17. Nf4
{[%clk 0:02:03.6]} 17... Bg8 {[%clk 0:00:30.4]} 18. exd6 {[%clk 0:02:00.1]}
18... Bxb2+ {[%clk 0:00:29.5]} 19. Kxb2 {[%clk 0:02:01]} 19... Qf6+ {[%clk
0:00:29.2]} 20. Nd4 {[%clk 0:01:54.9]} 20... Rad8 {[%clk 0:00:15]} 21. c3 {[%clk
0:01:53.1]} 21... Rxd6 {[%clk 0:00:12.4]} 22. h4 {[%clk 0:01:44]} 22... Ne5
{[%clk 0:00:10.3]} 23. Nf3 {[%clk 0:01:36.7]} 23... Rc8 {[%clk 0:00:09.7]} 24.
Rxd6 {[%clk 0:01:34.9]} 24... Qxd6 {[%clk 0:00:08.3]} 25. Rd1 {[%clk 0:01:31.6]}
25... Qf6 {[%clk 0:00:08.3]} 26. Qd4 {[%clk 0:01:25.8]} 26... Nxf3 {[%clk
0:00:05.8]} 27. Bxf3 {[%clk 0:01:26.4]} 27... Qxd4 {[%clk 0:00:05.6]} 28. Rxd4
{[%clk 0:01:27.3]} 28... Nxc3 {[%clk 0:00:05.3]} 29. Rd6 {[%clk 0:01:21]} 29...
b4 {[%clk 0:00:05.7]} 30. Rxa6 {[%clk 0:01:20]} 30... Nb5 {[%clk 0:00:06.4]} 31.
Rb6 {[%clk 0:01:17.2]} 31... Nd4 {[%clk 0:00:04.5]} 32. Bd1 {[%clk 0:01:17.7]}
32... Nc6 {[%clk 0:00:04.5]} 33. Nd3 {[%clk 0:01:15.1]} 33... Rd8 {[%clk
0:00:03.6]} 34. Bc2 {[%clk 0:01:13.1]} 34... Nd4 {[%clk 0:00:01.5]} 35. Nxb4
{[%clk 0:01:12.5]} 35... Ne2 {[%clk 0:00:01.5]} 36. Rc6 {[%clk 0:01:08.1]} 36...
Nxg3 {[%clk 0:00:02.4]} 37. a4 {[%clk 0:01:06.3]} 37... Ne2 {[%clk 0:00:02.6]}
38. a5 {[%clk 0:01:06.6]} 38... f4 {[%clk 0:00:03.1]} 39. a6 {[%clk 0:01:04.4]}
39... f3 {[%clk 0:00:03.2]} 40. Rf6 {[%clk 0:01:04.9]} 40... Nd4 {[%clk
0:00:03.3]} 41. Be4 {[%clk 0:01:01.4]} 41... Kg7 {[%clk 0:00:03.3]} 42. Rxf3
{[%clk 0:01:02]} 42... Nxf3 {[%clk 0:00:03.4]} 43. Bxf3 {[%clk 0:01:02.9]} 43...
Rf8 {[%clk 0:00:02.7]} 44. a7 {[%clk 0:01:02.5]} 44... h6 {[%clk 0:00:02.8]} 45.
Na6 {[%clk 0:00:57.8]} 45... g5 {[%clk 0:00:02.3]} 46. hxg5 {[%clk 0:00:58.2]}
46... hxg5 {[%clk 0:00:03.2]} 47. Nb8 {[%clk 0:00:58.2]} 47... g4 {[%clk
0:00:02.6]} 48. a8=Q {[%clk 0:00:54.3]} 48... gxf3 {[%clk 0:00:02.4]} 49. Qa7+
{[%clk 0:00:55]} 49... Rf7 {[%clk 0:00:02.3]} 50. Qf2 {[%clk 0:00:55]} 50... Kf8
{[%clk 0:00:02.7]} 51. Nc6 {[%clk 0:00:54.8]} 51... Rf6 {[%clk 0:00:01.8]} 52.
Nd4 {[%clk 0:00:53.8]} 52... Bd5 {[%clk 0:00:02.4]} 53. Nc2 {[%clk 0:00:52.1]}
53... Ke8 {[%clk 0:00:02.7]} 54. Ne3 {[%clk 0:00:52.5]} 54... Be4 {[%clk
0:00:02.5]} 55. Qh4 {[%clk 0:00:50.9]} 1-0

[Event "*** Titled Tuesday Blitz"]
[Site "Chess.com"]
[Date "2020.04.07"]
[Round "6"]
[White "m-garcett"]
[Black "fish7728"]
[Result "0-1"]
[WhiteElo "1894"]
[BlackElo "2139"]
[TimeControl "180+1"]
[EndTime "14:07:55 PDT"]
[Termination "fish7728 won by checkmate"]

1. e4 {[%clk 0:03:00.9]} 1... c5 {[%clk 0:02:59.4]} 2. Nf3 {[%clk 0:02:57.8]}
2... e6 {[%clk 0:02:59.8]} 3. d4 {[%clk 0:02:52.9]} 3... cxd4 {[%clk 0:02:57.6]}
4. Nxd4 {[%clk 0:02:53.8]} 4... a6 {[%clk 0:02:55.7]} 5. Bd3 {[%clk 0:02:53.6]}
5... Qc7 {[%clk 0:02:54.5]} 6. Qe2 {[%clk 0:02:53.1]} 6... d6 {[%clk 0:02:51.5]}
7. O-O {[%clk 0:02:52.4]} 7... Nf6 {[%clk 0:02:51.5]} 8. c4 {[%clk 0:02:50.9]}
8... Nbd7 {[%clk 0:02:49.6]} 9. Nc3 {[%clk 0:02:45.3]} 9... b6 {[%clk
0:02:48.8]} 10. f4 {[%clk 0:02:44.6]} 10... Bb7 {[%clk 0:02:47.9]} 11. Be3
{[%clk 0:02:44.6]} 11... Be7 {[%clk 0:02:47.4]} 12. b4 {[%clk 0:02:45.1]} 12...
O-O {[%clk 0:02:45.5]} 13. g4 {[%clk 0:02:45.6]} 13... d5 {[%clk 0:02:41.7]} 14.
e5 {[%clk 0:02:41.3]} 14... Ne4 {[%clk 0:02:33.7]} 15. Bxe4 {[%clk 0:02:37]}
15... dxe4 {[%clk 0:02:33]} 16. Rac1 {[%clk 0:02:37.1]} 16... Bxb4 {[%clk
0:02:31.7]} 17. Nd5 {[%clk 0:02:19.3]} 17... exd5 {[%clk 0:02:27.5]} 18. cxd5
{[%clk 0:02:20.2]} 18... Qd8 {[%clk 0:02:20.7]} 19. e6 {[%clk 0:02:00.9]} 19...
Nc5 {[%clk 0:02:15.1]} 20. exf7+ {[%clk 0:01:52.6]} 20... Rxf7 {[%clk 0:02:14]}
21. Ne6 {[%clk 0:01:45.4]} 21... Nxe6 {[%clk 0:02:07.7]} 22. dxe6 {[%clk
0:01:44.8]} 22... Re7 {[%clk 0:02:03.4]} 23. f5 {[%clk 0:01:45]} 23... Qd3
{[%clk 0:01:51]} 24. Qf2 {[%clk 0:01:40.9]} 24... Bc5 {[%clk 0:01:44.9]} 25.
Bxc5 {[%clk 0:01:36.7]} 25... bxc5 {[%clk 0:01:44.2]} 26. Qxc5 {[%clk
0:01:35.8]} 26... Rae8 {[%clk 0:01:41.2]} 27. Rcd1 {[%clk 0:01:30.1]} 27... Qe2
{[%clk 0:01:36.5]} 28. Qf2 {[%clk 0:01:01.7]} 28... Qxg4+ {[%clk 0:01:20.7]} 29.
Qg3 {[%clk 0:01:01.7]} 29... Qxg3+ {[%clk 0:01:10.8]} 30. hxg3 {[%clk
0:01:02.6]} 30... h6 {[%clk 0:01:08.6]} 31. Rfe1 {[%clk 0:01:02.6]} 31... Rc8
{[%clk 0:00:53.6]} 32. Rd6 {[%clk 0:00:56.1]} 32... Rc5 {[%clk 0:00:52.2]} 33.
g4 {[%clk 0:00:55.6]} 33... h5 {[%clk 0:00:45.5]} 34. Rb1 {[%clk 0:00:42.8]}
34... hxg4 {[%clk 0:00:40.5]} 35. Rd7 {[%clk 0:00:43.3]} 35... Rc7 {[%clk
0:00:33.9]} 36. Rd8+ {[%clk 0:00:15.8]} 36... Kh7 {[%clk 0:00:33.2]} 37. Kf2
{[%clk 0:00:15.7]} 37... Rc3 {[%clk 0:00:27.5]} 38. Rh1+ {[%clk 0:00:13.5]}
38... Rh3 {[%clk 0:00:24]} 39. Rb1 {[%clk 0:00:13.9]} 39... e3+ {[%clk 0:00:22]}
40. Ke2 {[%clk 0:00:14.1]} 40... Bc6 {[%clk 0:00:18.6]} 41. Rb6 {[%clk
0:00:11.8]} 41... Bb5+ {[%clk 0:00:18.2]} 42. Ke1 {[%clk 0:00:11.3]} 42... Rh1#
{[%clk 0:00:17.1]} 0-1

[Event "*** Titled Tuesday Blitz"]
[Site "Chess.com"]
[Date "2020.04.07"]
[Round "6"]
[White "GOGIEFF"]
[Black "SketchyMoves"]
[Result "1/2-1/2"]
[WhiteElo "2943"]
[BlackElo "2758"]
[TimeControl "180+1"]
[EndTime "14:07:56 PDT"]
[Termination "Game drawn by repetition"]

1. d4 {[%clk 0:03:00.9]} 1... e6 {[%clk 0:02:59]} 2. c4 {[%clk 0:03:00.8]} 2...
Bb4+ {[%clk 0:02:58]} 3. Nc3 {[%clk 0:03:00.5]} 3... Nf6 {[%clk 0:02:57.4]} 4.
e3 {[%clk 0:02:59.6]} 4... O-O {[%clk 0:02:57]} 5. Bd3 {[%clk 0:02:59.4]} 5...
c5 {[%clk 0:02:54.9]} 6. Nf3 {[%clk 0:02:59.8]} 6... Nc6 {[%clk 0:02:52.5]} 7.
O-O {[%clk 0:02:58.9]} 7... Bxc3 {[%clk 0:02:53.1]} 8. bxc3 {[%clk 0:02:58.4]}
8... d6 {[%clk 0:02:54]} 9. Nd2 {[%clk 0:02:57.6]} 9... e5 {[%clk 0:02:51.9]}
10. d5 {[%clk 0:02:57.9]} 10... Ne7 {[%clk 0:02:51.6]} 11. f3 {[%clk 0:02:58.5]}
11... Nh5 {[%clk 0:02:46.2]} 12. g4 {[%clk 0:02:55]} 12... Nf6 {[%clk
0:02:43.7]} 13. Rf2 {[%clk 0:02:54.7]} 13... Ne8 {[%clk 0:02:28.5]} 14. e4
{[%clk 0:02:53.9]} 14... Ng6 {[%clk 0:02:19.8]} 15. Nf1 {[%clk 0:02:50.4]} 15...
Nf4 {[%clk 0:02:16.6]} 16. Ng3 {[%clk 0:02:48.1]} 16... Nh3+ {[%clk 0:02:16.2]}
17. Kg2 {[%clk 0:02:48]} 17... Nxf2 {[%clk 0:02:17.1]} 18. Kxf2 {[%clk
0:02:48.9]} 18... g6 {[%clk 0:02:10.2]} 19. Kg2 {[%clk 0:02:34.3]} 19... Qh4
{[%clk 0:02:01]} 20. Be3 {[%clk 0:02:31.2]} 20... Ng7 {[%clk 0:01:59.3]} 21. Qd2
{[%clk 0:02:30.9]} 21... Qe7 {[%clk 0:01:53.9]} 22. Bh6 {[%clk 0:02:29.4]} 22...
Bd7 {[%clk 0:01:40.2]} 23. Kh1 {[%clk 0:02:06.5]} 23... Rab8 {[%clk 0:01:39.6]}
24. Rg1 {[%clk 0:02:03.3]} 24... f6 {[%clk 0:01:33.4]} 25. h4 {[%clk 0:01:48.5]}
25... Kh8 {[%clk 0:01:31.1]} 26. Qh2 {[%clk 0:01:16.1]} 26... a6 {[%clk
0:01:25.7]} 27. a4 {[%clk 0:01:07.5]} 27... b5 {[%clk 0:01:23.7]} 28. cxb5
{[%clk 0:01:01.3]} 28... axb5 {[%clk 0:01:24.6]} 29. h5 {[%clk 0:00:57.4]} 29...
c4 {[%clk 0:01:11.8]} 30. Bc2 {[%clk 0:00:47.5]} 30... g5 {[%clk 0:01:06.2]} 31.
axb5 {[%clk 0:00:42.1]} 31... Rxb5 {[%clk 0:00:58.3]} 32. Ba4 {[%clk 0:00:41.4]}
32... Rb7 {[%clk 0:00:55.8]} 33. Bc6 {[%clk 0:00:38.2]} 33... Rc7 {[%clk
0:00:52]} 34. Bxg7+ {[%clk 0:00:37.9]} 34... Qxg7 {[%clk 0:00:48.5]} 35. Bxd7
{[%clk 0:00:30.2]} 35... Qxd7 {[%clk 0:00:49.4]} 36. Nf5 {[%clk 0:00:30.6]}
36... Rb8 {[%clk 0:00:44.9]} 37. h6 {[%clk 0:00:30]} 37... Rcb7 {[%clk
0:00:35.5]} 38. Qf2 {[%clk 0:00:28.8]} 38... Rb1 {[%clk 0:00:29.2]} 39. Rxb1
{[%clk 0:00:28.1]} 39... Rxb1+ {[%clk 0:00:29.8]} 40. Kg2 {[%clk 0:00:28.5]}
40... Qc7 {[%clk 0:00:20.7]} 41. Qa2 {[%clk 0:00:26.6]} 41... Qb8 {[%clk
0:00:17.1]} 42. Kg3 {[%clk 0:00:25.4]} 42... Rg1+ {[%clk 0:00:14.2]} 43. Kh3
{[%clk 0:00:25.5]} 43... Rf1 {[%clk 0:00:07.9]} 44. Kg3 {[%clk 0:00:22.3]} 44...
Rg1+ {[%clk 0:00:07.7]} 45. Kh3 {[%clk 0:00:22.4]} 45... Rf1 {[%clk 0:00:08.3]}
46. Kg3 {[%clk 0:00:19.1]} 46... Rg1+ {[%clk 0:00:08.3]} 1/2-1/2

[Event "*** Titled Tuesday Blitz"]
[Site "Chess.com"]
[Date "2020.04.07"]
[Round "6"]
[White "Manukyan_Artak"]
[Black "Olga_Zhuravleva"]
[Result "1-0"]
[WhiteElo "2408"]
[BlackElo "2216"]
[TimeControl "180+1"]
[EndTime "14:07:56 PDT"]
[Termination "Manukyan_Artak won on time"]

1. e4 {[%clk 0:03:00.9]} 1... e5 {[%clk 0:02:59.6]} 2. Nf3 {[%clk 0:02:59.9]}
2... Nc6 {[%clk 0:02:59.2]} 3. d4 {[%clk 0:03:00.1]} 3... exd4 {[%clk
0:02:58.6]} 4. Nxd4 {[%clk 0:03:01]} 4... Nf6 {[%clk 0:02:58.2]} 5. Nxc6 {[%clk
0:03:01]} 5... bxc6 {[%clk 0:02:57.9]} 6. e5 {[%clk 0:03:01.6]} 6... Qe7 {[%clk
0:02:58.2]} 7. Qe2 {[%clk 0:03:02.1]} 7... Nd5 {[%clk 0:02:58.7]} 8. c4 {[%clk
0:03:03]} 8... Ba6 {[%clk 0:02:58.9]} 9. b3 {[%clk 0:03:03.1]} 9... g6 {[%clk
0:02:58.2]} 10. g3 {[%clk 0:03:02.2]} 10... Bg7 {[%clk 0:02:57.7]} 11. Bb2
{[%clk 0:03:02.4]} 11... O-O {[%clk 0:02:56.6]} 12. Bg2 {[%clk 0:03:02.5]} 12...
Nb6 {[%clk 0:02:55.9]} 13. O-O {[%clk 0:03:01.5]} 13... Rae8 {[%clk 0:02:56.5]}
14. Re1 {[%clk 0:02:57.8]} 14... f6 {[%clk 0:02:45.2]} 15. e6 {[%clk 0:02:54.1]}
15... Qxe6 {[%clk 0:02:33.3]} 16. Qxe6+ {[%clk 0:02:53.1]} 16... Rxe6 {[%clk
0:02:33.9]} 17. Rxe6 {[%clk 0:02:53.1]} 17... dxe6 {[%clk 0:02:34.6]} 18. Bxc6
{[%clk 0:02:52.6]} 18... Rd8 {[%clk 0:02:28.2]} 19. Nc3 {[%clk 0:02:47]} 19...
Rd2 {[%clk 0:02:24.7]} 20. Bc1 {[%clk 0:02:30.4]} 20... Rc2 {[%clk 0:02:23.8]}
21. Nb5 {[%clk 0:02:29.8]} 21... f5 {[%clk 0:01:53.5]} 22. Rb1 {[%clk
0:02:25.1]} 22... Bxb5 {[%clk 0:01:53.9]} 23. cxb5 {[%clk 0:02:12.6]} 23... Bd4
{[%clk 0:01:52.7]} 24. Bf4 {[%clk 0:01:53.9]} 24... Rxf2 {[%clk 0:01:42.7]} 25.
Kh1 {[%clk 0:01:36.8]} 25... e5 {[%clk 0:01:41.6]} 26. Bg5 {[%clk 0:01:36.5]}
26... Rxa2 {[%clk 0:01:36.7]} 27. Bd8 {[%clk 0:01:36.2]} 27... Kf7 {[%clk
0:00:59.2]} 28. Bxc7 {[%clk 0:01:36.1]} 28... Ke6 {[%clk 0:00:57.8]} 29. Rd1
{[%clk 0:01:12.3]} 29... Rb2 {[%clk 0:00:42.4]} 30. Bb8 {[%clk 0:01:08.3]} 30...
Nd5 {[%clk 0:00:21.6]} 31. Bxa7 {[%clk 0:00:49.1]} 31... Rxb3 {[%clk 0:00:13.3]}
32. Bxd4 {[%clk 0:00:48.4]} 32... exd4 {[%clk 0:00:13.1]} 33. Rxd4 {[%clk
0:00:49]} 33... Nc3 {[%clk 0:00:11.3]} 34. Rd3 {[%clk 0:00:40.9]} 34... Rb1+
{[%clk 0:00:10.9]} 35. Kg2 {[%clk 0:00:40.3]} 35... Nxb5 {[%clk 0:00:11.4]} 36.
h4 {[%clk 0:00:36.7]} 36... Nd6 {[%clk 0:00:08.1]} 37. Re3+ {[%clk 0:00:31.4]}
37... Kf6 {[%clk 0:00:07.1]} 38. Bd5 {[%clk 0:00:30.5]} 38... Rb2+ {[%clk
0:00:06.9]} 39. Kh3 {[%clk 0:00:29.7]} 39... Nf7 {[%clk 0:00:07.4]} 40. Re6+
{[%clk 0:00:28.8]} 40... Kg7 {[%clk 0:00:07.5]} 41. Re7 {[%clk 0:00:29.1]} 41...
Kh6 {[%clk 0:00:06]} 42. Bxf7 {[%clk 0:00:24.5]} 42... Rb3 {[%clk 0:00:05.8]}
43. Bg8 {[%clk 0:00:23.6]} 1-0

[Event "*** Titled Tuesday Blitz"]
[Site "Chess.com"]
[Date "2020.04.07"]
[Round "6"]
[White "anon132639"]
[Black "daro94"]
[Result "1-0"]
[WhiteElo "2646"]
[BlackElo "2841"]
[TimeControl "180+1"]
[EndTime "14:08:00 PDT"]
[Termination "anon132639 won on time"]

1. d4 {[%clk 0:03:00.9]} 1... g6 {[%clk 0:02:57.1]} 2. e4 {[%clk 0:02:58.9]}
2... Bg7 {[%clk 0:02:57.4]} 3. Nc3 {[%clk 0:02:59.4]} 3... d6 {[%clk 0:02:56.7]}
4. Be3 {[%clk 0:02:59.8]} 4... a6 {[%clk 0:02:57.2]} 5. Qd2 {[%clk 0:02:59.2]}
5... Nd7 {[%clk 0:02:57.4]} 6. O-O-O {[%clk 0:02:58.8]} 6... b5 {[%clk
0:02:57.8]} 7. f3 {[%clk 0:02:58.1]} 7... Nb6 {[%clk 0:02:51.5]} 8. Qf2 {[%clk
0:02:43]} 8... b4 {[%clk 0:02:50.1]} 9. Nce2 {[%clk 0:02:34.3]} 9... Nc4 {[%clk
0:02:48.2]} 10. Nf4 {[%clk 0:02:23.9]} 10... Nxe3 {[%clk 0:02:42.4]} 11. Qxe3
{[%clk 0:02:24.8]} 11... e6 {[%clk 0:02:16.8]} 12. Kb1 {[%clk 0:02:19.2]} 12...
a5 {[%clk 0:01:53.3]} 13. Bb5+ {[%clk 0:02:01.6]} 13... Bd7 {[%clk 0:01:53.5]}
14. Bxd7+ {[%clk 0:02:02.2]} 14... Qxd7 {[%clk 0:01:54.4]} 15. Nge2 {[%clk
0:02:03.1]} 15... Ne7 {[%clk 0:01:40.3]} 16. h4 {[%clk 0:02:02.1]} 16... h6
{[%clk 0:01:39.2]} 17. g4 {[%clk 0:01:50.3]} 17... Qb5 {[%clk 0:01:36.3]} 18. d5
{[%clk 0:01:24.4]} 18... e5 {[%clk 0:00:52.8]} 19. Nd3 {[%clk 0:01:23.7]} 19...
Nc8 {[%clk 0:00:47.2]} 20. h5 {[%clk 0:01:17.8]} 20... g5 {[%clk 0:00:34.4]} 21.
c4 {[%clk 0:00:58]} 21... bxc3 {[%clk 0:00:24.8]} 22. Nxc3 {[%clk 0:00:58]}
22... Qa6 {[%clk 0:00:25.4]} 23. Na4 {[%clk 0:00:46.8]} 23... O-O {[%clk
0:00:23.9]} 24. Rc1 {[%clk 0:00:45.4]} 24... Qb7 {[%clk 0:00:18.7]} 25. Rc4
{[%clk 0:00:28.8]} 25... Ne7 {[%clk 0:00:18.6]} 26. Rhc1 {[%clk 0:00:27.6]}
26... Rfc8 {[%clk 0:00:18.5]} 27. Ka1 {[%clk 0:00:18.5]} 27... Rab8 {[%clk
0:00:18]} 28. Qd2 {[%clk 0:00:17.6]} 28... c6 {[%clk 0:00:17.6]} 29. dxc6 {[%clk
0:00:16.8]} 29... Rxc6 {[%clk 0:00:13.5]} 30. Rxc6 {[%clk 0:00:16.3]} 30... Nxc6
{[%clk 0:00:14.4]} 31. Qc3 {[%clk 0:00:15.7]} 31... Nd4 {[%clk 0:00:09.8]} 32.
Qxa5 {[%clk 0:00:13.3]} 32... Nxf3 {[%clk 0:00:10.2]} 33. Qc7 {[%clk 0:00:09.8]}
33... Nd2 {[%clk 0:00:04.8]} 34. Qxb7 {[%clk 0:00:08.5]} 34... Rxb7 {[%clk
0:00:05.7]} 35. Nf2 {[%clk 0:00:09.4]} 35... d5 {[%clk 0:00:03.4]} 36. exd5
{[%clk 0:00:09.1]} 36... e4 {[%clk 0:00:04.1]} 37. Re1 {[%clk 0:00:07.9]} 37...
Rb4 {[%clk 0:00:02.5]} 38. Nc3 {[%clk 0:00:06]} 38... e3 {[%clk 0:00:03]} 39.
Rxe3 {[%clk 0:00:05.2]} 1-0

[Event "*** Titled Tuesday Blitz"]
[Site "Chess.com"]
[Date "2020.04.07"]
[Round "6"]
[White "Tomytoteph"]
[Black "esteban062000"]
[Result "0-1"]
[WhiteElo "2304"]
[BlackElo "2202"]
[TimeControl "180+1"]
[EndTime "14:08:00 PDT"]
[Termination "esteban062000 won by checkmate"]

1. d4 {[%clk 0:03:00.9]} 1... Nf6 {[%clk 0:02:59.8]} 2. Nf3 {[%clk 0:03:01]}
2... e6 {[%clk 0:03:00.1]} 3. c4 {[%clk 0:03:01.5]} 3... Bb4+ {[%clk 0:02:59.7]}
4. Nbd2 {[%clk 0:03:01.9]} 4... O-O {[%clk 0:02:59.4]} 5. a3 {[%clk 0:03:02.2]}
5... Be7 {[%clk 0:02:58.7]} 6. e4 {[%clk 0:03:02.6]} 6... d6 {[%clk 0:02:58.3]}
7. Bd3 {[%clk 0:03:00.1]} 7... Nc6 {[%clk 0:02:45.2]} 8. Qc2 {[%clk 0:02:57.5]}
8... e5 {[%clk 0:02:44.8]} 9. d5 {[%clk 0:02:56.6]} 9... Nb8 {[%clk 0:02:45]}
10. b4 {[%clk 0:02:56]} 10... a5 {[%clk 0:02:44.5]} 11. Bb2 {[%clk 0:02:55.7]}
11... axb4 {[%clk 0:02:44.2]} 12. axb4 {[%clk 0:02:56.1]} 12... Rxa1+ {[%clk
0:02:44.3]} 13. Bxa1 {[%clk 0:02:56.2]} 13... Na6 {[%clk 0:02:44.8]} 14. Bc3
{[%clk 0:02:53.2]} 14... c6 {[%clk 0:02:44.9]} 15. O-O {[%clk 0:02:51.7]} 15...
cxd5 {[%clk 0:02:44.4]} 16. exd5 {[%clk 0:02:51.3]} 16... h6 {[%clk 0:02:42.4]}
17. Re1 {[%clk 0:02:35.2]} 17... Nc7 {[%clk 0:02:38.3]} 18. Nb3 {[%clk
0:02:33.4]} 18... b5 {[%clk 0:02:36.6]} 19. c5 {[%clk 0:02:32.5]} 19... dxc5
{[%clk 0:02:15.1]} 20. Nxe5 {[%clk 0:02:21.9]} 20... Ncxd5 {[%clk 0:01:56.2]}
21. Nc6 {[%clk 0:02:20.5]} 21... Qc7 {[%clk 0:01:54.5]} 22. Nxe7+ {[%clk
0:02:19.8]} 22... Nxe7 {[%clk 0:01:52.9]} 23. Bxf6 {[%clk 0:02:19]} 23... gxf6
{[%clk 0:01:50.8]} 24. Nxc5 {[%clk 0:02:19]} 24... Nd5 {[%clk 0:01:24.7]} 25.
Re4 {[%clk 0:02:17.8]} 25... Bf5 {[%clk 0:01:17]} 26. Rd4 {[%clk 0:02:16.4]}
26... Nxb4 {[%clk 0:00:55.3]} 27. Rxb4 {[%clk 0:02:14.9]} 27... Bxd3 {[%clk
0:00:54.9]} 28. Qxd3 {[%clk 0:02:01.2]} 28... Qxc5 {[%clk 0:00:54.3]} 29. Rg4+
{[%clk 0:01:52.8]} 29... Kh8 {[%clk 0:00:50]} 30. Qd2 {[%clk 0:01:51.6]} 30...
Kh7 {[%clk 0:00:40]} 31. h3 {[%clk 0:01:49.9]} 31... Rg8 {[%clk 0:00:19.8]} 32.
Qd3+ {[%clk 0:01:47.2]} 32... Rg6 {[%clk 0:00:19.9]} 33. Rf4 {[%clk 0:01:42.1]}
33... Qc1+ {[%clk 0:00:19.2]} 34. Kh2 {[%clk 0:01:40.4]} 34... Qxf4+ {[%clk
0:00:19.4]} 35. Kg1 {[%clk 0:01:40.4]} 35... Qc1+ {[%clk 0:00:18.5]} 36. Kh2
{[%clk 0:01:39.9]} 36... Qc4 {[%clk 0:00:18.5]} 37. Qd7 {[%clk 0:01:34.5]} 37...
Kg7 {[%clk 0:00:18.5]} 38. g3 {[%clk 0:01:27.5]} 38... Qf1 {[%clk 0:00:18.3]}
39. Qd4 {[%clk 0:01:25.1]} 39... Qc4 {[%clk 0:00:17.8]} 40. Qb2 {[%clk
0:01:23.7]} 40... b4 {[%clk 0:00:17.8]} 41. h4 {[%clk 0:01:23.6]} 41... Qc3
{[%clk 0:00:18.2]} 42. Qe2 {[%clk 0:01:22.1]} 42... b3 {[%clk 0:00:16.2]} 43. h5
{[%clk 0:01:22.1]} 43... Rg5 {[%clk 0:00:16.6]} 44. f4 {[%clk 0:01:21.1]} 44...
Qc2 {[%clk 0:00:16]} 45. Qxc2 {[%clk 0:01:21.1]} 45... bxc2 {[%clk 0:00:16.5]}
46. fxg5 {[%clk 0:01:22]} 46... fxg5 {[%clk 0:00:17.1]} 47. g4 {[%clk
0:00:46.7]} 47... c1=Q {[%clk 0:00:18]} 48. Kg3 {[%clk 0:00:45.2]} 48... Qe3+
{[%clk 0:00:18]} 49. Kg2 {[%clk 0:00:44.5]} 49... Qe4+ {[%clk 0:00:18.1]} 50.
Kg3 {[%clk 0:00:43.9]} 50... Qf4+ {[%clk 0:00:17.8]} 51. Kh3 {[%clk 0:00:43.6]}
51... Qf3+ {[%clk 0:00:18.1]} 52. Kh2 {[%clk 0:00:43.7]} 52... Qxg4 {[%clk
0:00:18.1]} 53. Kh1 {[%clk 0:00:40.5]} 53... f5 {[%clk 0:00:19]} 54. Kh2 {[%clk
0:00:40.8]} 54... f4 {[%clk 0:00:19.9]} 55. Kh1 {[%clk 0:00:41.2]} 55... f3
{[%clk 0:00:20.5]} 56. Kh2 {[%clk 0:00:41.8]} 56... Qg2# {[%clk 0:00:21.2]} 0-1

[Event "*** Titled Tuesday Blitz"]
[Site "Chess.com"]
[Date "2020.04.07"]
[Round "6"]
[White "UmutErdemGunduz"]
[Black "tteshan"]
[Result "1-0"]
[WhiteElo "2414"]
[BlackElo "2201"]
[TimeControl "180+1"]
[EndTime "14:08:01 PDT"]
[Termination "UmutErdemGunduz won by resignation"]

1. e4 {[%clk 0:03:00.9]} 1... c5 {[%clk 0:02:59.7]} 2. Nf3 {[%clk 0:02:59.4]}
2... Nc6 {[%clk 0:02:59.8]} 3. d4 {[%clk 0:02:59.3]} 3... cxd4 {[%clk 0:03:00]}
4. Nxd4 {[%clk 0:03:00.2]} 4... g6 {[%clk 0:02:56.4]} 5. Nc3 {[%clk 0:03:00.4]}
5... Bg7 {[%clk 0:02:55.6]} 6. Be3 {[%clk 0:03:00.6]} 6... Nf6 {[%clk
0:02:51.8]} 7. Bc4 {[%clk 0:02:59.4]} 7... O-O {[%clk 0:02:52]} 8. f3 {[%clk
0:02:55.6]} 8... d6 {[%clk 0:02:51.9]} 9. Qd2 {[%clk 0:02:52.5]} 9... Bd7 {[%clk
0:02:49.7]} 10. h4 {[%clk 0:02:50]} 10... h5 {[%clk 0:02:47]} 11. O-O-O {[%clk
0:02:45.5]} 11... Rc8 {[%clk 0:02:43]} 12. Bb3 {[%clk 0:02:45.5]} 12... Na5
{[%clk 0:02:42.7]} 13. Kb1 {[%clk 0:02:40.9]} 13... Nc4 {[%clk 0:02:41.4]} 14.
Bxc4 {[%clk 0:02:40.2]} 14... Rxc4 {[%clk 0:02:42.3]} 15. Nb3 {[%clk 0:02:36.1]}
15... b5 {[%clk 0:02:35.8]} 16. Bh6 {[%clk 0:02:26.1]} 16... b4 {[%clk
0:02:22.2]} 17. Bxg7 {[%clk 0:02:22.6]} 17... Kxg7 {[%clk 0:02:23.1]} 18. Nd5
{[%clk 0:02:21.3]} 18... Nxd5 {[%clk 0:02:17.9]} 19. Qxd5 {[%clk 0:02:13.4]}
19... Be6 {[%clk 0:02:17.9]} 20. Qd3 {[%clk 0:02:10.6]} 20... Qc7 {[%clk
0:02:13.1]} 21. g4 {[%clk 0:02:06.7]} 21... hxg4 {[%clk 0:02:08.9]} 22. fxg4
{[%clk 0:02:05.8]} 22... Bxg4 {[%clk 0:02:09.3]} 23. Rdg1 {[%clk 0:02:05.1]}
23... Bh5 {[%clk 0:02:08.5]} 24. Rg5 {[%clk 0:02:02.4]} 24... Rc8 {[%clk
0:02:05.4]} 25. Rhg1 {[%clk 0:01:46]} 25... Rh8 {[%clk 0:01:46.5]} 26. Rf1
{[%clk 0:00:39.8]} 26... f6 {[%clk 0:01:37.4]} 27. Rg2 {[%clk 0:00:37]} 27...
Rc8 {[%clk 0:01:20.8]} 28. Nd4 {[%clk 0:00:31.3]} 28... Qd7 {[%clk 0:01:05]} 29.
Qd2 {[%clk 0:00:29.9]} 29... Kh7 {[%clk 0:00:44.7]} 30. Rfg1 {[%clk 0:00:26.6]}
30... R8c5 {[%clk 0:00:20]} 31. Qd3 {[%clk 0:00:10.6]} 31... a5 {[%clk
0:00:11.8]} 32. Nf5 {[%clk 0:00:08.6]} 32... Rc3 {[%clk 0:00:05.4]} 33. bxc3
{[%clk 0:00:04]} 33... bxc3 {[%clk 0:00:05.6]} 34. Ka1 {[%clk 0:00:01.2]} 34...
Qb7 {[%clk 0:00:05.4]} 35. Rb1 {[%clk 0:00:01.8]} 35... Qc6 {[%clk 0:00:03.8]}
36. Qe3 {[%clk 0:00:02.2]} 36... Rc4 {[%clk 0:00:03.2]} 37. Qh6+ {[%clk
0:00:02.2]} 1-0